[Event "27th Kavala Open 2018"]
[Site "Kavala"]
[Date "2018.08.06"]
[Round "3"]
[White "Kelires, Andreas"]
[Black "Ambartsumova, Karina"]
[Result "1-0"]
[ECO "E04"]
[WhiteElo "2531"]
[BlackElo "2377"]
[Annotator "ChessBase"]
[PlyCount "75"]
[EventDate "2018.08.06"]
[EventType "swiss"]
[EventCountry "GRE"]
[SourceTitle "playchess.com"]
[Source "ChessBase"]
[SourceQuality "1"]
[TimeControl "40/5400+30:900+30"]

1. d4 {[%emt 0:03:31]} Nf6 {[%emt 0:00:40]} 2. c4 {[%emt 0:00:09]} e6 {[%emt 0:03:53]} 3. Nf3 {[%emt 0:00:17]} d5 {[%emt 0:00:19]} 4. g3 {[%emt 0:00:05]} dxc4 {[%emt 0:01:21]} 5. Bg2 {[%emt 0:01:02]} Nc6 {[%emt 0:01:31]} 6. O-O {[%emt 0:00:16]} Rb8 {[%emt 0:03:27]} 7. e3 {[%emt 0:00:31]} b5 {[%emt 0:05:44]} 8. b3 {[%emt 0:02:43]} cxb3 {[%emt 0:01:21]} 9. axb3 {[%emt 0:00:06]} a6 {[%emt 0:05:31]} 10. Ne1 {[%emt 0:02:26]} Nb4 {[%emt 0:05:19]} 11. Bd2 {[%emt 0:04:52]} Be7 {[%emt 0:08:43]} 12. Bxb4 {[%emt 0:11:42]} Bxb4 {[%emt 0:00:06]} 13. Nd3 {[%emt 0:00:04]} Bd6 {[%emt 0:09:25]} 14. Nd2 {[%emt 0:07:43]} O-O {[%emt 0:01:49]} 15. Qe2 {[%emt 0:00:59]} Nd7 {[%emt 0:07:59]} 16. Ne4 {[%emt 0:04:41]} e5 {[%emt 0:05:36]} 17. Nxd6 {[%emt 0:03:46]} cxd6 {[%emt 0:00:05]} 18. Nb4 {[%emt 0:00:17]} Rb6 {[%emt 0:03:39]} 19. Rfc1 {[%emt 0:04:11]} Nf6 {[%emt 0:03:03]} 20. Qd2 {[%emt 0:06:41]} Qd7 {[%emt 0:08:21]} 21. dxe5 {[%emt 0:08:22]} dxe5 {[%emt 0:00:22]} 22. Qxd7 {[%emt 0:00:44]} Bxd7 {[%emt 0:00:39]} 23. Nxa6 {[%emt 0:00:14]} Rc8 {[%emt 0:11:52]} 24. Rxc8+ {[%emt 0:01:59]} Bxc8 {[%emt 0:00:01]} 25. Nb4 {[%emt 0:00:23]} Re6 {[%emt 0:06:29]} 26. Bc6 {[%emt 0:06:16]} Bd7 {[%emt 0:01:05]} 27. Bxd7 {[%emt 0:00:08]} Nxd7 {[%emt 0:00:02]} 28. Ra8+ {[%emt 0:00:06]} Nf8 {[%emt 0:00:02]} 29. Rb8 {[%emt 0:01:02]} f6 {[%emt 0:02:52]} 30. Rxb5 {[%emt 0:00:53]} Rd6 {[%emt 0:00:06]} 31. Kg2 {[%emt 0:01:22]} Ne6 {[%emt 0:01:09]} 32. Nd5 {[%emt 0:01:00]} Rd7 {[%emt 0:00:26]} 33. b4 {[%emt 0:02:49]} Kf7 {[%emt 0:02:29]} 34. Ra5 {[%emt 0:01:18]} g6 {[%emt 0:00:51]} 35. e4 {[%emt 0:04:49]} f5 {[%emt 0:00:33]} 36. exf5 {[%emt 0:02:20]} gxf5 {[%emt 0:00:02]} 37. Ne3 {[%emt 0:03:05]} Kf6 {[%emt 0:00:43]} 38. Ra6 {[%emt 0:02:18]} 1-0

[Event "27th Kavala Open 2018"]
[Site "Kavala"]
[Date "2018.08.06"]
[Round "3"]
[White "Iljin, Artem"]
[Black "Giannoulakis, Lampros"]
[Result "1/2-1/2"]
[ECO "E63"]
[WhiteElo "2520"]
[BlackElo "2287"]
[Annotator "ChessBase"]
[PlyCount "54"]
[EventDate "2018.08.06"]
[EventType "swiss"]
[EventCountry "GRE"]
[SourceTitle "playchess.com"]
[Source "ChessBase"]
[SourceQuality "1"]
[TimeControl "40/5400+30:900+30"]

1. Nf3 {[%emt 0:00:23]} Nf6 {[%emt 0:00:11]} 2. c4 {[%emt 0:00:33]} g6 {[%emt 0:00:17]} 3. g3 {[%emt 0:00:32]} Bg7 {[%emt 0:00:31]} 4. Bg2 {[%emt 0:00:12]} O-O {[%emt 0:00:08]} 5. O-O {[%emt 0:00:28]} d6 {[%emt 0:00:19]} 6. d4 {[%emt 0:00:28]} Nc6 {[%emt 0:00:12]} 7. Nc3 {[%emt 0:01:01]} a6 {[%emt 0:02:12]} 8. d5 {[%emt 0:17:11]} Na5 {[%emt 0:00:12]} 9. b3 {[%emt 0:01:37]} c5 {[%emt 0:00:28]} 10. dxc6 {[%emt 0:00:57]} Nxc6 {[%emt 0:01:03]} 11. Bg5 {[%emt 0:02:04]} h6 {[%emt 0:04:23]} 12. Bd2 {[%emt 0:01:47]} Be6 {[%emt 0:05:55]} 13. Qc1 {[%emt 0:13:20]} Kh7 {[%emt 0:00:24]} 14. Rd1 {[%emt 0:00:58]} Rc8 {[%emt 0:03:12]} 15. Qa3 {[%emt 0:13:34]} b5 {[%emt 0:04:47]} 16. Qxa6 {[%emt 0:06:47]} bxc4 {[%emt 0:07:23]} 17. bxc4 {[%emt 0:00:59]} Nb4 {[%emt 0:00:34]} 18. Qb5 {[%emt 0:02:13]} Nc2 {[%emt 0:01:53]} 19. Rac1 {[%emt 0:01:01]} Na3 {[%emt 0:00:49]} 20. Qb4 {[%emt 0:05:59]} Nxc4 {[%emt 0:03:33]} 21. Nd4 {[%emt 0:01:09]} Nxd2 {[%emt 0:06:16]} 22. Nxe6 {[%emt 0:05:28]} fxe6 {[%emt 0:00:09]} 23. Rxd2 {[%emt 0:00:04]} Rb8 {[%emt 0:03:12]} 24. Qh4 {[%emt 0:04:26]} Qa5 {[%emt 0:02:33]} 25. Qa4 {[%emt 0:09:07]} Qb6 {[%emt 0:22:37]} 26. e3 {[%emt 0:00:41]} d5 {[%emt 0:02:09]} 27. Ne2 {[%emt 0:01:50]} Rfc8 {[%emt 0:03:16]} 1/2-1/2

[Event "27th Kavala Open 2018"]
[Site "Kavala"]
[Date "2018.08.06"]
[Round "3"]
[White "Hasangatin, Ramil"]
[Black "Dorfanis, Ilarion"]
[Result "1-0"]
[ECO "C65"]
[WhiteElo "2491"]
[BlackElo "2183"]
[Annotator "ChessBase"]
[PlyCount "129"]
[EventDate "2018.08.06"]
[EventType "swiss"]
[EventCountry "GRE"]
[SourceTitle "playchess.com"]
[Source "ChessBase"]
[SourceQuality "1"]
[TimeControl "40/5400+30:900+30"]

1. e4 {[%emt 0:00:03]} e5 {[%emt 0:01:46]} 2. Nf3 {[%emt 0:00:11]} Nc6 {[%emt 0:00:28]} 3. Bb5 {[%emt 0:00:06]} Nf6 {[%emt 0:01:19]} 4. d3 {[%emt 0:00:47]} Bc5 {[%emt 0:01:04]} 5. Bxc6 {[%emt 0:00:12]} dxc6 {[%emt 0:00:18]} 6. Bg5 {[%emt 0:00:35]} Qd6 {[%emt 0:20:09]} 7. Nbd2 {[%emt 0:01:05]} Nd7 {[%emt 0:03:06]} 8. Nc4 {[%emt 0:03:54]} Qg6 {[%emt 0:01:52]} 9. O-O {[%emt 0:00:53]} f6 {[%emt 0:04:24]} 10. Be3 {[%emt 0:00:48]} Bxe3 {[%emt 0:01:56]} 11. fxe3 {[%emt 0:07:11]} Nb6 {[%emt 0:05:37]} 12. Na5 {[%emt 0:03:01]} Bh3 {[%emt 0:05:07]} 13. Nh4 {[%emt 0:19:05]} Qg5 {[%emt 0:01:10]} 14. Nxb7 {[%emt 0:03:04]} Bc8 {[%emt 0:14:53]} 15. Nf5 {[%emt 0:00:09]} Bxf5 {[%emt 0:01:54]} 16. exf5 {[%emt 0:04:34]} Qxe3+ {[%emt 0:02:26]} 17. Kh1 {[%emt 0:00:05]} O-O {[%emt 0:17:26]} 18. Qf3 {[%emt 0:09:46]} Nd5 {[%emt 0:02:17]} 19. Na5 {[%emt 0:01:08]} Qxf3 {[%emt 0:02:29]} 20. Rxf3 {[%emt 0:00:02]} Rab8 {[%emt 0:01:15]} 21. b3 {[%emt 0:03:41]} Nc3 {[%emt 0:00:49]} 22. d4 {[%emt 0:07:37]} Nb5 {[%emt 0:03:52]} 23. dxe5 {[%emt 0:00:42]} fxe5 {[%emt 0:00:50]} 24. Nxc6 {[%emt 0:00:43]} e4 {[%emt 0:01:47]} 25. Re3 {[%emt 0:04:42]} Rbe8 {[%emt 0:00:13]} 26. c4 {[%emt 0:01:28]} Nd6 {[%emt 0:00:10]} 27. g4 {[%emt 0:00:04]} h5 {[%emt 0:00:51]} 28. c5 {[%emt 0:04:15]} Nb7 {[%emt 0:00:32]} 29. b4 {[%emt 0:00:01]} hxg4 {[%emt 0:00:35]} 30. Nxa7 {[%emt 0:02:43]} Rxf5 {[%emt 0:00:27]} 31. Nb5 {[%emt 0:00:29]} Rf2 {[%emt 0:02:41]} 32. Nc3 {[%emt 0:05:31]} Re6 {[%emt 0:01:46]} 33. Kg1 {[%emt 0:01:41]} Rb2 {[%emt 0:00:18]} 34. Rb1 {[%emt 0:01:24]} Rc2 {[%emt 0:00:19]} 35. Rbe1 {[%emt 0:01:30]} Rh6 {[%emt 0:00:35]} 36. R1e2 {[%emt 0:01:05]} Rc1+ {[%emt 0:00:04]} 37. Kg2 {[%emt 0:00:16]} Rf6 {[%emt 0:01:10]} 38. Nxe4 {[%emt 0:01:17]} Rff1 {[%emt 0:00:13]} 39. Kg3 {[%emt 0:02:47]} Rg1+ {[%emt 0:00:46]} 40. Kh4 {[%emt 0:00:00]} Nd8 {[%emt 0:00:00]} 41. Ng5 {[%emt 0:01:23]} Rcf1 {[%emt 0:05:04]} 42. Rg3 {[%emt 0:06:55]} Rh1 {[%emt 0:01:22]} 43. Kxg4 {[%emt 0:00:38]} Rf8 {[%emt 0:01:14]} 44. Rf3 {[%emt 0:04:36]} Rg1+ {[%emt 0:00:47]} 45. Kh4 {[%emt 0:00:21]} Rxf3 {[%emt 0:01:24]} 46. Nxf3 {[%emt 0:00:00]} Rf1 {[%emt 0:00:41]} 47. Ng5 {[%emt 0:03:48]} Kf8 {[%emt 0:00:10]} 48. a3 {[%emt 0:01:24]} Nc6 {[%emt 0:03:23]} 49. Re3 {[%emt 0:02:44]} Rg1 {[%emt 0:01:00]} 50. Nf3 {[%emt 0:01:03]} Rg2 {[%emt 0:01:24]} 51. Kh3 {[%emt 0:00:26]} Rg6 {[%emt 0:01:07]} 52. Ne5 {[%emt 0:00:53]} Rh6+ {[%emt 0:00:27]} 53. Kg2 {[%emt 0:00:41]} Re6 {[%emt 0:01:42]} 54. Ng4 {[%emt 0:00:42]} Rg6 {[%emt 0:00:09]} 55. h3 {[%emt 0:00:20]} Ne7 {[%emt 0:00:23]} 56. b5 {[%emt 0:00:31]} Nd5 {[%emt 0:01:01]} 57. Rf3+ {[%emt 0:01:01]} Ke7 {[%emt 0:00:15]} 58. Kf2 {[%emt 0:01:15]} Rg5 {[%emt 0:01:05]} 59. a4 {[%emt 0:00:45]} Nb4 {[%emt 0:00:59]} 60. Rb3 {[%emt 0:01:32]} Rf5+ {[%emt 0:00:40]} 61. Kg3 {[%emt 0:00:55]} Nd5 {[%emt 0:00:14]} 62. a5 {[%emt 0:00:42]} Nf4 {[%emt 0:01:55]} 63. a6 {[%emt 0:00:23]} Ne2+ {[%emt 0:00:23]} 64. Kh2 {[%emt 0:00:10]} Nd4 {[%emt 0:00:31]} 65. a7 {[%emt 0:00:15]} 1-0

[Event "27th Kavala Open 2018"]
[Site "Kavala"]
[Date "2018.08.06"]
[Round "3"]
[White "Petrov, Martin"]
[Black "Markelova, Lubov"]
[Result "1-0"]
[ECO "A13"]
[WhiteElo "2456"]
[BlackElo "2143"]
[Annotator "RC"]
[PlyCount "73"]
[EventDate "2018.08.06"]
[EventType "swiss"]
[EventCountry "GRE"]
[SourceTitle "playchess.com"]
[Source "ChessBase"]
[SourceQuality "1"]
[TimeControl "40/5400+30:900+30"]

1. c4 {[%emt 0:00:13]} e6 {[%emt 0:02:56]} 2. Nf3 {[%emt 0:00:41]} Nf6 {[%emt 0:01:12]} 3. e3 {[%emt 0:01:33]} d5 {[%emt 0:01:22]} 4. Nc3 {[%emt 0:02:37]} c5 {[%emt 0:03:17]} 5. d4 {[%emt 0:01:15]} a6 {[%emt 0:05:24]} 6. cxd5 {[%emt 0:01:28]} exd5 {[%emt 0:01:35]} 7. Be2 {[%emt 0:00:19]} Nc6 {[%emt 0:01:24]} 8. O-O {[%emt 0:00:25]} Be7 {[%emt 0:01:56]} 9. dxc5 {[%emt 0:00:34]} Bxc5 {[%emt 0:00:48]} 10. b3 {[%emt 0:01:02]} O-O {[%emt 0:01:09]} 11. Bb2 {[%emt 0:00:08]} Qd6 {[%emt 0:15:40]} 12. Na4 {[%emt 0:09:07]} Ba7 {[%emt 0:07:07]} 13. Bxf6 {[%emt 0:00:24]} Qxf6 {[%emt 0:07:22]} 14. Qxd5 {[%emt 0:02:21]} Rd8 {[%emt 0:05:14]} 15. Qg5 {[%emt 0:01:29]} Qxg5 {[%emt 0:03:27]} 16. Nxg5 {[%emt 0:00:07]} h6 {[%emt 0:05:23]} 17. Nf3 {[%emt 0:02:06]} b5 {[%emt 0:02:30]} 18. Nc3 {[%emt 0:03:12]} Be6 {[%emt 0:01:23]} 19. Rfd1 {[%emt 0:06:17]} Nb4 {[%emt 0:03:56]} 20. a3 {[%emt 0:23:25]} Rxd1+ {[%emt 0:20:04]} 21. Bxd1 {[%emt 0:00:14]} Nd5 {[%emt 0:02:06]} 22. Ne2 {[%emt 0:03:47]} Rc8 {[%emt 0:02:47]} 23. Nfd4 {[%emt 0:05:50]} Bg4 {[%emt 0:01:51]} 24. h3 {[%emt 0:01:11]} Bxe2 {[%emt 0:00:30]} 25. Bxe2 {[%emt 0:00:05]} Rc3 {[%emt 0:01:11]} 26. Bf3 {[%emt 0:08:44]} Bxd4 {[%emt 0:00:52]} 27. exd4 {[%emt 0:00:05]} Nf4 {[%emt 0:00:17]} 28. b4 {[%emt 0:00:19]} Nxh3+ {[%emt 0:00:39]} 29. Kf1 {[%emt 0:00:29]} Nf4 {[%emt 0:00:34]} 30. Bb7 {[%emt 0:00:08]} Ne6 {[%emt 0:00:31]} 31. d5 {[%emt 0:00:08]} Rc7 {[%emt 0:00:31]} 32. Bxa6 {[%emt 0:00:39]} Nd4 {[%emt 0:00:24]} 33. Rd1 {[%emt 0:00:47]} Nc2 {[%emt 0:00:36]} 34. d6 {[%emt 0:00:10]} Rd7 {[%emt 0:00:11]} 35. Bxb5 {[%emt 0:00:17]} Rd8 {[%emt 0:00:03]} 36. Rd3 {[%emt 0:00:51]} Kf8 {[%emt 0:00:43]} 37. Ba4 {[%emt 0:00:28] Ke7} 1-0

[Event "27th Kavala Open 2018"]
[Site "Kavala"]
[Date "2018.08.06"]
[Round "3"]
[White "Sandalakis, Angelos"]
[Black "Liodakis, Konstantinos-Spyros"]
[Result "1-0"]
[ECO "E85"]
[WhiteElo "2444"]
[BlackElo "2172"]
[Annotator "NA"]
[PlyCount "111"]
[EventDate "2018.08.06"]
[EventType "swiss"]
[EventCountry "GRE"]
[SourceTitle "playchess.com"]
[Source "ChessBase"]
[SourceQuality "1"]
[TimeControl "40/5400+30:900+30"]

1. d4 {[%emt 0:00:04]} Nf6 {[%emt 0:06:13]} 2. c4 {[%emt 0:00:44]} g6 {[%emt 0:00:03]} 3. Nc3 {[%emt 0:00:44]} Bg7 {[%emt 0:02:32]} 4. e4 {[%emt 0:00:07]} d6 {[%emt 0:00:05]} 5. f3 {[%emt 0:00:07]} O-O {[%emt 0:00:16]} 6. Be3 {[%emt 0:00:11]} e5 {[%emt 0:02:58]} 7. Nge2 {[%emt 0:01:29]} Nc6 {[%emt 0:00:36]} 8. d5 {[%emt 0:00:53]} Ne7 {[%emt 0:00:06]} 9. Qd2 {[%emt 0:01:45]} c6 {[%emt 0:04:15]} 10. g4 {[%emt 0:03:18]} b5 {[%emt 0:05:44]} 11. g5 {[%emt 0:14:51]} Nh5 {[%emt 0:05:14]} 12. dxc6 {[%emt 0:03:58]} bxc4 {[%emt 0:01:34]} 13. O-O-O {[%emt 0:00:17]} Nxc6 {[%emt 0:01:35]} 14. Qxd6 {[%emt 0:02:31]} Nd4 {[%emt 0:07:47]} 15. Qxd8 {[%emt 0:03:32]} Rxd8 {[%emt 0:00:11]} 16. Nb5 {[%emt 0:00:45]} Be6 {[%emt 0:06:52]} 17. Nbxd4 {[%emt 0:10:19]} exd4 {[%emt 0:00:41]} 18. Bxd4 {[%emt 0:01:07]} Rab8 {[%emt 0:09:23]} 19. Bxg7 {[%emt 0:03:58]} Rxd1+ {[%emt 0:00:13]} 20. Kxd1 {[%emt 0:00:04]} Kxg7 {[%emt 0:00:04]} 21. Kc2 {[%emt 0:00:52]} Rd8 {[%emt 0:01:43]} 22. Bg2 {[%emt 0:01:23]} Rd3 {[%emt 0:03:43]} 23. Rd1 {[%emt 0:02:36]} Re3 {[%emt 0:00:29]} 24. Kd2 {[%emt 0:01:18]} Rd3+ {[%emt 0:00:58]} 25. Ke1 {[%emt 0:00:10]} f6 {[%emt 0:01:02]} 26. h4 {[%emt 0:03:36]} fxg5 {[%emt 0:01:19]} 27. hxg5 {[%emt 0:00:03]} h6 {[%emt 0:00:48]} 28. gxh6+ Kxh6 {[%emt 0:00:29]} 29. Nd4 {[%emt 0:19:24]} Bg8 {[%emt 0:03:09]} 30. Rxd3 {[%emt 0:04:25]} cxd3 {[%emt 0:00:08]} 31. b3 {[%emt 0:00:09]} Kg5 {[%emt 0:00:36]} 32. Bf1 {[%emt 0:00:59]} Kf4 {[%emt 0:02:23]} 33. Kd2 {[%emt 0:00:11]} g5 {[%emt 0:00:35]} 34. Bxd3 {[%emt 0:00:30]} Nf6 {[%emt 0:01:03]} 35. a4 {[%emt 0:07:42]} g4 {[%emt 0:07:58]} 36. fxg4 {[%emt 0:00:05]} Nxg4 {[%emt 0:00:04]} 37. b4 {[%emt 0:00:23]} Nf6 {[%emt 0:01:05]} 38. Nc6 {[%emt 0:05:20]} Bb3 {[%emt 0:01:46]} 39. a5 {[%emt 0:00:58]} Nxe4+ {[%emt 0:02:43]} 40. Bxe4 {[%emt 0:00:00]} Kxe4 {[%emt 0:00:00]} 41. Kc3 {[%emt 0:01:18]} Kd5 {[%emt 0:00:49]} 42. Nxa7 {[%emt 0:00:15]} Bc4 {[%emt 0:00:05]} 43. Nc6 {[%emt 0:01:38]} Bf1 {[%emt 0:01:29]} 44. Nd4 {[%emt 0:00:40]} Kd6 {[%emt 0:00:46]} 45. Nc2 {[%emt 0:05:40]} Kc6 {[%emt 0:01:07]} 46. Ne3 {[%emt 0:00:04]} Be2 {[%emt 0:00:29]} 47. Kb3 {[%emt 0:00:49]} Bd3 {[%emt 0:02:08]} 48. Nc2 {[%emt 0:01:27]} Kd5 {[%emt 0:00:35]} 49. Na3 {[%emt 0:03:37]} Be2 {[%emt 0:01:36]} 50. Nb1 {[%emt 0:00:50]} Kc6 {[%emt 0:00:20]} 51. Nc3 {[%emt 0:00:17]} Bd3 {[%emt 0:00:22]} 52. Ka3 {[%emt 0:00:17]} Kd6 {[%emt 0:01:41]} 53. Ka4 {[%emt 0:01:53]} Bf1 {[%emt 0:02:27]} 54. b5 {[%emt 0:00:17]} Kc5 {[%emt 0:00:10]} 55. Ne4+ {[%emt 0:00:40]} Kd4 56. b6 1-0

[Event "27th Kavala Open 2018"]
[Site "Kavala"]
[Date "2018.08.06"]
[Round "3"]
[White "Prince, Bajaj"]
[Black "Kazakos, Markos"]
[Result "1-0"]
[ECO "B00"]
[WhiteElo "2411"]
[BlackElo "2062"]
[Annotator "NA"]
[PlyCount "57"]
[EventDate "2018.08.06"]
[EventType "swiss"]
[EventCountry "GRE"]
[SourceTitle "playchess.com"]
[Source "ChessBase"]
[SourceQuality "1"]
[TimeControl "40/5400+30:900+30"]

1. e4 {[%emt 0:01:01]} Nc6 {[%emt 0:01:42]} 2. Nf3 {[%emt 0:00:17]} d6 {[%emt 0:00:09]} 3. d4 {[%emt 0:00:06]} Nf6 {[%emt 0:00:15]} 4. Nc3 {[%emt 0:00:06]} g6 {[%emt 0:00:34]} 5. d5 {[%emt 0:00:23]} Nb8 {[%emt 0:00:26]} 6. h3 {[%emt 0:00:07]} Bg7 {[%emt 0:00:36]} 7. Bc4 {[%emt 0:00:06]} O-O {[%emt 0:00:29]} 8. O-O {[%emt 0:00:09]} Re8 {[%emt 0:03:47]} 9. Re1 {[%emt 0:02:39]} e6 {[%emt 0:03:15]} 10. dxe6 {[%emt 0:01:47]} Bxe6 {[%emt 0:02:13]} 11. Bxe6 Rxe6 {[%emt 0:01:04]} 12. e5 {[%emt 0:10:29]} Ne8 {[%emt 0:08:17]} 13. Bf4 {[%emt 0:09:59]} Nc6 {[%emt 0:02:25]} 14. Ng5 {[%emt 0:02:42]} Rxe5 {[%emt 0:12:26]} 15. Bxe5 {[%emt 0:00:54]} Nxe5 {[%emt 0:01:20]} 16. Nf3 {[%emt 0:23:54]} Nc6 {[%emt 0:03:03]} 17. Nd5 {[%emt 0:01:47]} Nf6 {[%emt 0:02:56]} 18. c3 {[%emt 0:00:33]} Qd7 {[%emt 0:03:59]} 19. Re2 {[%emt 0:08:18]} Re8 {[%emt 0:14:40]} 20. Rxe8+ {[%emt 0:04:44]} Nxe8 {[%emt 0:01:27]} 21. Qb3 {[%emt 0:00:32]} b6 {[%emt 0:03:34]} 22. Re1 {[%emt 0:11:03]} Ne5 {[%emt 0:04:19]} 23. Nxe5 {[%emt 0:00:02]} dxe5 {[%emt 0:00:33]} 24. Rd1 {[%emt 0:00:46]} Nd6 {[%emt 0:03:29]} 25. Qb4 {[%emt 0:04:12]} Qd8 {[%emt 0:04:17]} 26. Nxc7 {[%emt 0:01:12]} Qxc7 {[%emt 0:00:17]} 27. Qxd6 {[%emt 0:00:12]} Qb7 {[%emt 0:01:35]} 28. Qd7 {[%emt 0:01:51]} Qa6 {[%emt 0:00:28]} 29. Qe8+ {[%emt 0:00:06]} 1-0

[Event "27th Kavala Open 2018"]
[Site "Kavala"]
[Date "2018.08.06"]
[Round "3"]
[White "Kanakaris, Georgios"]
[Black "Theodorou, Nikolas"]
[Result "1/2-1/2"]
[ECO "A05"]
[WhiteElo "2398"]
[BlackElo "2532"]
[Annotator "RC"]
[PlyCount "56"]
[EventDate "2018.08.06"]
[EventType "swiss"]
[EventCountry "GRE"]
[SourceTitle "playchess.com"]
[Source "ChessBase"]
[SourceQuality "1"]
[TimeControl "40/5400+30:900+30"]

1. Nf3 {[%emt 0:00:04]} Nf6 {[%emt 0:03:27]} 2. g3 {[%emt 0:00:07]} g6 {[%emt 0:00:23]} 3. Bg2 {[%emt 0:00:07]} Bg7 {[%emt 0:00:03]} 4. O-O {[%emt 0:00:09]} O-O {[%emt 0:00:03]} 5. d4 {[%emt 0:00:06]} Nc6 {[%emt 0:02:15]} 6. Re1 {[%emt 0:02:02]} d5 {[%emt 0:02:28]} 7. Ne5 {[%emt 0:14:56]} Nxe5 8. dxe5 {[%emt 0:00:07]} Ne4 {[%emt 0:03:07]} 9. f3 {[%emt 0:01:53]} Nc5 {[%emt 0:00:10]} 10. Be3 {[%emt 0:02:13]} Na4 {[%emt 0:06:28]} 11. f4 {[%emt 0:15:58]} Be6 {[%emt 0:05:57]} 12. b3 {[%emt 0:02:58]} Nb6 {[%emt 0:00:02]} 13. Nc3 {[%emt 0:00:15]} c6 {[%emt 0:03:48]} 14. Bf2 {[%emt 0:06:44]} f6 {[%emt 0:03:19]} 15. exf6 {[%emt 0:07:07]} Bxf6 {[%emt 0:00:42]} 16. Qd2 {[%emt 0:00:54]} Bf5 {[%emt 0:07:50]} 17. Rac1 {[%emt 0:09:12]} e5 {[%emt 0:14:51]} 18. e4 {[%emt 0:14:31]} dxe4 {[%emt 0:00:08]} 19. Qxd8 {[%emt 0:00:05]} Raxd8 {[%emt 0:00:04]} 20. Nxe4 {[%emt 0:00:26]} Bxe4 {[%emt 0:00:07]} 21. Rxe4 {[%emt 0:01:18]} exf4 {[%emt 0:00:11]} 22. Rxf4 {[%emt 0:01:04]} Rd2 {[%emt 0:02:26]} 23. Rf1 {[%emt 0:02:10]} Bg7 {[%emt 0:08:01]} 24. Rxf8+ {[%emt 0:01:22]} Bxf8 {[%emt 0:00:02]} 25. Bh3 {[%emt 0:00:24]} Bg7 {[%emt 0:14:32]} 26. c4 {[%emt 0:07:08]} Rxa2 {[%emt 0:01:05]} 27. Be6+ {[%emt 0:00:35]} Kh8 {[%emt 0:00:01]} 28. Rd1 {[%emt 0:00:57]} Ra1 {[%emt 0:01:53]} 1/2-1/2

[Event "27th Kavala Open 2018"]
[Site "Kavala"]
[Date "2018.08.06"]
[Round "3"]
[White "Charkhalashvili, Inga"]
[Black "Neelotpal, Das"]
[Result "1/2-1/2"]
[ECO "A50"]
[WhiteElo "2313"]
[BlackElo "2429"]
[Annotator "NA"]
[PlyCount "40"]
[EventDate "2018.08.06"]
[EventType "swiss"]
[EventCountry "GRE"]
[SourceTitle "playchess.com"]
[Source "ChessBase"]
[SourceQuality "1"]
[TimeControl "40/5400+30:900+30"]

1. d4 {[%emt 0:00:04]} Nf6 {[%emt 0:00:31]} 2. c4 {[%emt 0:00:07]} g6 {[%emt 0:00:18]} 3. f3 {[%emt 0:00:04]} e6 {[%emt 0:00:29]} 4. Nc3 {[%emt 0:03:37]} d5 {[%emt 0:07:36]} 5. e4 {[%emt 0:00:25]} dxe4 {[%emt 0:06:16]} 6. fxe4 {[%emt 0:00:07]} c5 {[%emt 0:06:35]} 7. d5 {[%emt 0:01:48]} Bg7 {[%emt 0:00:58]} 8. Nf3 {[%emt 0:03:51]} O-O {[%emt 0:00:42]} 9. Be2 {[%emt 0:01:33]} exd5 {[%emt 0:09:24]} 10. exd5 {[%emt 0:01:06]} Bg4 {[%emt 0:05:03]} 11. O-O {[%emt 0:00:30]} Nbd7 {[%emt 0:00:10]} 12. h3 {[%emt 0:09:36]} Bxf3 {[%emt 0:00:10]} 13. Bxf3 {[%emt 0:00:05]} Ne5 {[%emt 0:00:24]} 14. Be2 {[%emt 0:00:50]} Ne8 {[%emt 0:00:06]} 15. Be3 {[%emt 0:03:27]} Nd6 {[%emt 0:08:35]} 16. Bxc5 {[%emt 0:01:43]} Rc8 {[%emt 0:00:25]} 17. Bd4 {[%emt 0:11:06]} Ndxc4 {[%emt 0:03:34]} 18. Bxc4 {[%emt 0:01:18]} Rxc4 {[%emt 0:02:23]} 19. Kh1 {[%emt 0:07:27]} Qd6 {[%emt 0:05:38]} 20. Bg1 {[%emt 0:08:44]} Rb4 {[%emt 0:18:35]} 1/2-1/2

[Event "27th Kavala Open 2018"]
[Site "Kavala"]
[Date "2018.08.06"]
[Round "3"]
[White "Naoum, Spyridon"]
[Black "Bulmaga, Irina"]
[Result "1-0"]
[ECO "E20"]
[WhiteElo "2302"]
[BlackElo "2401"]
[Annotator "NA"]
[PlyCount "107"]
[EventDate "2018.08.06"]
[EventType "swiss"]
[EventCountry "GRE"]
[SourceTitle "playchess.com"]
[Source "ChessBase"]
[SourceQuality "1"]
[TimeControl "40/5400+30:900+30"]

1. d4 {[%emt 0:11:10]} Nf6 {[%emt 0:00:08]} 2. c4 {[%emt 0:00:05]} e6 {[%emt 0:00:07]} 3. Nc3 {[%emt 0:00:04]} Bb4 {[%emt 0:00:09]} 4. g3 {[%emt 0:01:15]} O-O {[%emt 0:00:27]} 5. Bg2 {[%emt 0:00:04]} Bxc3+ {[%emt 0:00:21]} 6. bxc3 {[%emt 0:00:09]} d6 {[%emt 0:00:10]} 7. Nf3 {[%emt 0:02:21]} Nc6 {[%emt 0:00:23]} 8. Qd3 {[%emt 0:03:00]} Rb8 {[%emt 0:00:23]} 9. Nd2 {[%emt 0:02:46]} Qd7 {[%emt 0:00:26]} 10. O-O {[%emt 0:03:00]} b6 {[%emt 0:00:31]} 11. Nb3 {[%emt 0:03:02]} Ba6 {[%emt 0:00:08]} 12. Bg5 {[%emt 0:00:03]} d5 {[%emt 0:00:16]} 13. Bxf6 {[%emt 0:00:19]} Bxc4 {[%emt 0:00:29]} 14. Qf3 {[%emt 0:03:50]} gxf6 {[%emt 0:00:08]} 15. Qxf6 {[%emt 0:13:20]} Bxe2 {[%emt 0:00:19]} 16. Qg5+ {[%emt 0:04:01]} Kh8 {[%emt 0:00:08]} 17. Qf6+ {[%emt 0:00:01]} Kg8 {[%emt 0:00:07]} 18. Rfe1 {[%emt 0:08:33]} Bd3 {[%emt 0:02:20]} 19. Qh6 {[%emt 0:01:24]} Rbe8 {[%emt 0:11:19]} 20. Re3 {[%emt 0:02:27]} Bg6 {[%emt 0:00:44]} 21. h4 {[%emt 0:03:44]} f6 {[%emt 0:01:13]} 22. h5 {[%emt 0:02:15]} Bc2 {[%emt 0:00:19]} 23. Rc1 {[%emt 0:18:44]} Bxb3 {[%emt 0:02:33]} 24. axb3 {[%emt 0:00:01]} Nd8 {[%emt 0:12:42]} 25. Rce1 {[%emt 0:03:14]} a5 {[%emt 0:03:55]} 26. Bh3 {[%emt 0:01:38]} c5 {[%emt 0:04:38]} 27. Qf4 {[%emt 0:02:38]} c4 {[%emt 0:06:05]} 28. bxc4 {[%emt 0:01:20]} dxc4 {[%emt 0:01:03]} 29. h6 {[%emt 0:00:21]} Re7 {[%emt 0:04:59]} 30. Re4 {[%emt 0:07:19]} b5 {[%emt 0:08:56]} 31. Rd1 {[%emt 0:01:01]} Qd5 32. Rde1 b4 {[%emt 0:07:59]} 33. Bg2 {[%emt 0:01:26]} Qd7 {[%emt 0:03:20]} 34. d5 {[%emt 0:00:18]} e5 {[%emt 0:01:59]} 35. Qh4 {[%emt 0:02:03]} Nb7 {[%emt 0:11:32]} 36. cxb4 {[%emt 0:00:25]} Nd6 {[%emt 0:00:33]} 37. Bh3 {[%emt 0:00:30]} Qc7 {[%emt 0:01:24]} 38. Rg4+ {[%emt 0:00:31]} Kh8 {[%emt 0:00:10]} 39. bxa5 {[%emt 0:00:05]} Qxa5 {[%emt 0:01:56]} 40. Rd1 {[%emt 0:00:00]} Qc5 {[%emt 0:00:00]} 41. Rg7 {[%emt 0:04:46]} Rxg7 {[%emt 0:04:42]} 42. hxg7+ {[%emt 0:00:03]} Kxg7 {[%emt 0:00:08]} 43. Be6 {[%emt 0:06:52]} Qc7 {[%emt 0:02:44]} 44. Qg4+ {[%emt 0:01:23]} Kh8 {[%emt 0:00:08]} 45. Rc1 {[%emt 0:00:37]} f5 {[%emt 0:02:22]} 46. Qf3 {[%emt 0:01:15]} f4 {[%emt 0:02:11]} 47. g4 {[%emt 0:02:32]} e4 {[%emt 0:00:38]} 48. Qa3 {[%emt 0:00:03]} f3 {[%emt 0:02:06]} 49. Rxc4 {[%emt 0:00:17]} Qd8 {[%emt 0:06:58]} 50. Qc3+ {[%emt 0:02:07]} Qf6 {[%emt 0:00:29]} 51. Qxf6+ {[%emt 0:00:09]} Rxf6 {[%emt 0:00:02]} 52. Rc6 {[%emt 0:00:05]} e3 {[%emt 0:04:07]} 53. fxe3 {[%emt 0:00:21]} Ne8 {[%emt 0:07:46]} 54. Rc8 {[%emt 0:00:39]} 1-0